bitfinex-derivatives/quotes_BNBF0:USTF0_20250130
["timestamp","ask_amount","ask_price","bid_price","bid_amount"]
[1738231645653,0.2950897,677.76,676.17,0.25940623]
[1738231645956,0.2950897,677.76,676.18,0.55518516]
[1738231646256,0.2950897,677.76,676.19,0.25940593]
[1738231646555,0.2950897,677.76,676.2,0.29577048]
[1738231646749,0.2950897,677.76,676.21,0.25940593]
[1738231646952,0.27140811,677.75,676.22,0.29576173]
[1738231647256,0.29509841,677.74,676.23,0.25940593]
[1738231647451,0.29509841,677.74,676.24,0.29575298]
[1738231647756,0.29509841,677.74,676.25,0.25940506]
[1738231647955,0.27140948,677.73,676.26,0.29574424]
[1738231648151,0.27140948,677.73,676.27,0.25940506]
[1738231648455,0.27140948,677.73,676.28,0.29573549]
[1738231648656,0.27140948,677.73,676.29,0.25940506]
[1738231648852,0.27140948,677.73,676.3,0.29572674]
[1738231649054,0.27140948,677.73,676.31,0.25940506]
[1738231649251,0.27140948,677.73,676.32,0.295718]
[1738231649556,0.27140948,677.73,676.33,0.25940506]
[1738231649760,0.27140948,677.73,676.34,0.29570925]
[1738231650055,0.27140948,677.73,676.35,0.25940506]
[1738231650854,0.29509841,677.74,676.34,0.29570925]
[1738231651054,0.2714072,677.73,676.35,0.25940442]
[1738231657660,1.10310886,677.69,676.35,0.25940442]
[1738231657860,0.2714072,677.68,676.35,0.25940442]
[1738231660957,1.37451576,677.67,676.36,0.25940412]
[1738231661155,0.2714069,677.66,676.35,0.25940412]
[1738231661355,0.2714069,677.66,676.36,0.25940412]
[1738231661556,0.2714069,677.66,676.35,0.25940412]
[1738231661761,0.2714069,677.66,676.36,0.25940412]
[1738231662061,0.2714069,677.66,676.37,0.25940412]
[1738231662258,0.2714069,677.66,676.38,0.25940412]
[1738231662459,0.2714069,677.66,676.35,0.25940412]
[1738231662760,0.2714069,677.66,676.36,0.25940412]
[1738231662963,0.2714069,677.66,676.37,0.25940412]
[1738231663261,0.2714069,677.66,676.38,0.25940412]
[1738231663463,0.2951376,677.65,676.35,0.25940412]
[1738231663761,0.2714069,677.64,676.35,0.25940412]
[1738231665061,1.10310886,677.63,676.35,0.25940412]
[1738231665258,0.2714069,677.62,676.35,0.25940412]
[1738231667457,1.10310886,677.63,676.36,0.2594047]
[1738231667664,1.10310886,677.58,676.37,0.2594047]
[1738231667863,0.27140752,677.57,676.38,0.2594047]
[1738231668063,0.27140752,677.57,676.39,0.2594047]
[1738231668262,0.27140752,677.57,676.35,0.2594047]
[1738231668963,1.10310886,677.58,676.34,0.29570925]
[1738231671266,1.10310886,677.51,676.36,1.09840676]
[1738231674667,0.2951376,677.65,676.34,0.29570925]
[1738231679770,0.2951376,677.65,676.35,0.25941014]
[1738231680669,0.27141418,677.64,676.35,0.25941014]
[1738231681771,0.2951376,677.65,676.34,0.29570925]
[1738231681972,0.271412,677.64,676.35,0.25940917]
[1738231682867,0.271412,677.64,676.42,1.09840676]
[1738231682868,1.10310886,677.39,676.42,1.09840676]
[1738231683068,1.10310886,677.39,676.43,0.25940917]
[1738231683470,1.10310886,677.39,676.42,1.09840676]
[1738231683471,1.10310886,677.39,676.44,0.2594097]
[1738231683771,1.10310886,677.39,676.45,0.2594097]
[1738231684072,1.10310886,677.39,676.46,0.2594097]
[1738231684265,1.10310886,677.39,676.43,0.2594097]
[1738231684465,1.10310886,677.39,676.44,0.2594097]
[1738231684670,1.10310886,677.39,676.43,0.2594097]
[1738231684866,1.10310886,677.39,676.44,0.2594097]
[1738231685070,1.10310886,677.39,676.43,0.2594097]
[1738231685367,1.10310886,677.39,676.44,0.2594097]
[1738231685673,1.10310886,677.32,676.51,1.09840676]
[1738231685879,1.10310886,677.32,676.52,0.2594097]
[1738231687976,1.10310886,677.32,676.53,0.2594097]
[1738231688175,1.10310886,677.32,676.51,0.2594097]
[1738231688373,1.10310886,677.32,676.5,1.09840676]
[1738231688574,1.10310886,677.32,676.51,0.25941661]
[1738231690773,1.10310886,677.32,676.49,1.09840676]
[1738231690774,1.10310886,677.32,676.5,0.25941661]
[1738231691673,1.10310886,677.32,676.49,1.09840676]
[1738231693680,1.10310886,677.39,676.35,1.54198361]
[1738231696480,1.10310886,677.41,676.35,1.54198361]
[1738231699778,1.10310886,677.45,676.35,1.54198361]
[1738231701783,1.10310886,677.45,676.36,0.25944133]
[1738231706785,1.10310886,677.47,676.36,0.25944133]
[1738231707986,1.10310886,677.47,676.35,2.64039037]
[1738231708187,1.10310886,677.47,676.35,2.93609525]
[1738231710591,1.10310886,677.5,676.36,0.25942306]
[1738231712989,1.10310886,677.5,676.35,1.83768849]
[1738231713183,1.10310886,677.5,676.36,0.25941686]
[1738231713488,1.10310886,677.5,676.35,1.83768849]
[1738231713690,1.10310886,677.5,676.36,0.25941715]
[1738231714990,1.10310886,677.5,676.35,1.83768849]
[1738231715190,0.2951376,677.65,676.35,1.83768849]
[1738231715191,1.10310886,677.53,676.35,1.83768849]
[1738231717792,1.10310886,677.53,676.36,0.25942288]
[1738231718994,1.10310886,677.54,676.36,0.25942288]
[1738231720094,1.10310886,677.54,676.37,0.25942767]
[1738231720289,1.10310886,677.54,676.36,0.25942767]
[1738231720491,1.10310886,677.54,676.37,0.25942767]
[1738231720692,1.10310886,677.54,676.38,0.25942767]
[1738231720994,1.10310886,677.54,676.39,0.25942767]
[1738231721188,1.10310886,677.54,676.36,0.25942767]
[1738231721387,1.10310886,677.54,676.35,1.83768849]
[1738231721993,0.2951376,677.65,676.35,1.83768849]
[1738231721994,1.10310886,677.47,676.35,1.83768849]
[1738231724295,1.10310886,677.41,676.35,1.83768849]
[1738231726899,1.10310886,677.44,676.35,1.83768849]
[1738231732601,0.2951376,677.65,676.35,1.83768849]
[1738231735297,1.54213166,677.64,676.35,1.83768849]
[1738231736198,0.27152716,677.63,676.35,1.83768849]
[1738231736492,1.54213166,677.64,676.35,1.83768849]
[1738231736698,0.27152665,677.63,676.35,1.83768849]
[1738231737296,0.27152665,677.63,676.35,0.29570488]
[1738231738303,0.56670709,677.62,676.35,0.29570488]
[1738231738495,0.27155642,677.61,676.35,0.29570488]
[1738231738700,0.29515938,677.6,676.35,0.29570488]
[1738231738901,0.27155642,677.59,676.35,0.29570488]
[1738231739100,0.29516809,677.58,676.35,0.29570488]
[1738231739302,0.27155642,677.57,676.35,0.29570488]
[1738231739496,0.29517681,677.56,676.35,0.29570488]
[1738231740697,0.2715488,677.55,676.35,0.29570488]
[1738231740902,0.29518552,677.54,676.35,0.29570488]
[1738231741299,0.2715488,677.53,676.35,0.29570488]
[1738231741503,0.29519423,677.52,676.35,0.29570488]
[1738231741703,0.2715488,677.51,676.35,0.29570488]
[1738231741906,0.29520295,677.5,676.35,0.29570488]
[1738231742103,0.2715488,677.49,676.35,0.29570488]
[1738231742303,0.29521166,677.48,676.35,0.29570488]
[1738231742503,0.2715488,677.47,676.35,0.29570488]
[1738231744303,0.27153112,677.46,676.35,0.29570488]
[1738231744504,0.27153112,677.45,676.35,0.29570488]
[1738231744704,0.27153112,677.47,676.35,0.29570488]
[1738231744904,0.27153112,677.46,676.35,0.29570488]
[1738231745107,0.27153112,677.45,676.35,0.29570488]
[1738231745406,0.27153112,677.44,676.35,0.29570488]
[1738231745607,0.27153112,677.47,676.35,0.29570488]
[1738231745906,0.29521166,677.48,676.35,0.29570488]
[1738231746106,0.2715336,677.47,676.35,0.29570488]
[1738231746908,1.10310886,677.44,676.35,0.29570488]
[1738231747207,0.2715336,677.43,676.35,0.29570488]
[1738231749909,1.10310886,677.42,676.35,0.29570488]
[1738231750109,0.2715336,677.41,676.35,0.29570488]
[1738231752615,0.27153598,677.4,676.35,0.29570488]
[1738231752814,1.10310886,677.38,676.35,0.29570488]
[1738231753112,0.27153598,677.37,676.35,0.29570488]
[1738231754115,1.10310886,677.38,676.35,0.29570488]
[1738231754413,0.27153586,677.37,676.35,0.29570488]
[1738231756615,1.10310886,677.26,676.35,0.29570488]
[1738231759518,1.10310886,677.23,676.35,0.29570488]
[1738231762818,1.10310886,677.4,676.35,0.29570488]
[1738231766325,1.39832052,677.48,676.35,0.29570488]
[1738231766526,0.27148559,677.47,676.35,0.29570488]
[1738231769827,1.10310886,677.34,676.35,0.29570488]
[1738231772827,0.29521166,677.48,676.35,0.29570488]
[1738231776228,0.29521166,677.48,676.36,0.25942395]
[1738231779235,1.10310886,677.61,676.37,0.29569614]
[1738231781029,1.10310886,677.61,676.38,0.259333]
[1738231781229,1.10104211,677.95,676.39,0.29568739]
[1738231781432,0.27131803,677.94,676.4,0.259333]
[1738231781629,0.27131803,678.14,676.4,0.259333]
[1738231782432,0.2949287,678.13,676.4,0.259333]
[1738231782634,0.27131803,678.12,676.4,0.259333]
[1738231784136,0.29493739,678.11,676.41,0.29567865]
[1738231784435,0.27131803,678.1,676.42,0.259333]
[1738231784631,0.27132091,678.09,676.43,0.25931871]
[1738231784827,0.29493739,678.11,676.41,0.29567865]
[1738231784828,0.27132091,678.1,676.42,0.25931871]
[1738231785030,0.27132091,678.09,676.43,0.25931871]
[1738231785229,0.27132091,678.1,676.42,0.25931871]
[1738231785430,0.27132091,678.09,676.43,0.25931871]
[1738231785635,0.27132091,678.08,676.44,0.25931871]
[1738231785937,0.27132091,678.07,676.45,0.25931871]
[1738231786137,0.27132091,678.06,676.46,0.25931871]
[1738231786332,0.29493739,678.11,676.47,0.25931871]
[1738231786536,0.27131756,678.1,676.41,0.29567865]
[1738231786837,0.27131756,678.1,676.42,0.25931535]
[1738231788441,0.29493739,678.11,676.43,0.29566991]
[1738231796146,0.29493739,678.11,676.44,0.25924289]
[1738231798045,0.29493739,678.11,676.46,0.2956568]
[1738231798245,0.29493739,678.11,676.47,0.25924289]
[1738231798447,0.29493739,678.11,676.49,0.29564369]
[1738231798747,0.29493739,678.11,676.5,0.25924289]
[1738231799146,0.29493739,678.11,676.51,0.29563494]
[1738231799348,0.29493739,678.11,676.52,0.25924289]
[1738231799650,0.29493739,678.11,676.53,0.29562621]
[1738231799948,0.29493739,678.11,676.54,0.25924289]
[1738231800146,0.29493739,678.11,676.55,0.29561747]
[1738231800347,0.29493739,678.11,676.56,0.25924289]
[1738231800647,0.29493739,678.11,676.57,0.29560873]
[1738231800841,0.29493739,678.11,676.58,0.25924289]
[1738231801042,0.29493739,678.11,676.59,0.55485838]
[1738231801246,0.29493739,678.11,676.6,0.55485401]
[1738231801542,0.29493739,678.11,676.61,0.55484964]
[1738231801743,0.29493739,678.11,676.62,0.29558688]
[1738231803950,0.29493739,678.11,676.63,0.25925446]
[1738231804146,0.29493739,678.11,676.64,0.29557815]
[1738231804950,0.29493739,678.11,676.65,0.25925442]
[1738231805145,0.29493739,678.11,676.66,0.29556941]
[1738231805951,0.29493739,678.11,676.67,0.25925277]
[1738231806150,0.29493739,678.11,676.68,0.29556067]
[1738231806450,0.27125337,678.1,676.69,0.25925277]
[1738231806950,0.29494609,678.09,676.69,0.25925277]
[1738231807151,0.27125337,678.08,676.69,0.25925277]
[1738231807353,0.56620381,678.08,676.69,0.25925277]
[1738231807555,0.27125337,678.07,676.69,0.25925277]
[1738231809052,0.2712581,678.06,676.7,0.25925627]
[1738231809250,0.2712581,678.05,676.71,0.25925627]
[1738231809446,0.29495044,678.08,676.68,0.29556067]
[1738231809447,0.2712581,678.04,676.72,0.25925627]
[1738231809650,0.2712581,678.03,676.73,0.25925627]
[1738231809851,0.2712581,678.07,676.69,0.25925627]
[1738231810053,0.2712581,678.06,676.7,0.25925627]
[1738231810253,0.2712581,678.05,676.71,0.25925627]
[1738231810456,0.2712581,678.04,676.72,0.25925627]
[1738231810650,0.29495044,678.08,676.68,0.29556067]
[1738231810955,0.27125908,678.07,676.69,0.25925722]
[1738231811147,0.27125908,678.07,676.7,0.29555194]
[1738231811353,0.27125908,678.07,676.71,0.25925722]
[1738231811553,0.27125908,678.07,676.72,0.2955432]
[1738231811753,0.27125908,678.07,676.73,0.25925722]
[1738231811949,0.27125908,678.07,676.74,0.29553447]
[1738231812248,0.29495044,678.08,676.74,0.29553447]
[1738231812455,0.27123834,678.07,676.75,0.25923665]
[1738231812856,0.27123834,678.07,676.76,0.29552574]
[1738231813155,0.27123834,678.07,676.77,0.25923665]
[1738231814049,0.27123086,678.06,676.78,0.2592292]
[1738231814255,0.27123086,678.07,676.77,0.2592292]
[1738231814554,0.29495044,678.08,676.78,0.2592292]
[1738231814754,0.29495044,678.08,676.77,0.2592292]
[1738231814949,0.29495044,678.08,676.78,0.2592292]
[1738231815153,0.29495044,678.08,676.77,0.2592292]
[1738231815354,0.29495044,678.08,676.78,0.2592292]
[1738231815654,0.29495044,678.08,676.79,0.2592292]
[1738231815852,0.29495044,678.08,676.77,0.2592292]
[1738231816048,0.29495044,678.08,676.78,0.2592292]
[1738231816254,0.29495044,678.08,676.77,0.2592292]
[1738231816456,0.29495044,678.08,676.78,0.2592292]
[1738231816656,0.29495044,678.08,676.77,0.2592292]
[1738231816856,0.29495044,678.08,676.78,0.2592292]
[1738231817156,0.29495044,678.08,676.79,0.2592292]
[1738231817356,0.29495044,678.08,676.8,0.25919448]
[1738231817558,0.29495044,678.08,676.77,0.25919448]
[1738231817855,0.29495044,678.08,676.78,0.25919448]
[1738231818056,0.29495044,678.08,676.77,0.25919448]
[1738231818256,0.29495044,678.08,676.78,0.25919448]
[1738231818458,0.29495044,678.08,676.77,0.25919448]
[1738231818654,0.29495044,678.08,676.78,0.25919448]
[1738231818857,0.29495044,678.08,676.79,0.29551264]
[1738231819156,0.29495044,678.08,676.8,0.25920523]
[1738231819457,0.29495044,678.08,676.81,0.2955039]
[1738231819657,0.29495044,678.08,676.82,0.25920523]
[1738231819857,0.29495044,678.08,676.83,0.29549517]
[1738231820055,0.29495044,678.08,676.84,0.25920523]
[1738231820251,0.29495044,678.08,676.84,0.55469604]
[1738231820455,0.29495044,678.08,676.85,0.25920523]
[1738231822257,0.27122181,678.07,676.85,0.25920523]
[1738231825757,1.3980593,678.08,676.84,0.29549081]
[1738231825961,1.10310886,677.93,676.85,0.25924065]
[1738231828561,1.10310886,677.91,676.85,0.25924065]
[1738231830864,1.10310886,677.91,676.84,0.29549081]
[1738231830865,1.10310886,677.91,676.86,0.25924069]
[1738231831059,1.10310886,677.91,676.87,0.25924069]
[1738231831265,1.10310886,677.91,676.88,0.25924069]
[1738231831565,1.10310886,677.89,676.89,0.25924069]
[1738231831763,1.10310886,677.89,676.84,0.29549081]
[1738231832065,1.10310886,677.89,676.85,0.25926642]
[1738231832267,0.27126785,677.88,676.85,0.25926642]
[1738231834165,1.10310886,677.89,676.84,0.29549081]
[1738231834367,1.10310886,677.89,676.85,0.25926348]
[1738231834665,0.27126527,677.88,676.85,0.25926348]
[1738231835168,1.10310886,677.77,676.85,0.25926348]
[1738231836565,1.10310886,677.77,676.84,0.29549081]
[1738231838371,1.10310886,677.77,676.85,0.25927623]
[1738231839070,1.10310886,677.77,676.84,0.29549081]
[1738231839370,1.10310886,677.77,676.85,0.25926807]
[1738231839670,1.10310886,677.77,676.84,0.29549081]
[1738231840167,1.10310886,677.82,676.84,0.29549081]
[1738231840670,1.10310886,677.82,676.85,0.25926494]
[1738231841071,1.10310886,677.82,676.84,0.29549081]
[1738231841272,1.10310886,677.82,676.85,0.25926784]
[1738231843170,1.10310886,677.88,676.85,0.25926784]
[1738231845173,1.10310886,677.88,676.84,0.29549081]
[1738231846579,1.10310886,677.91,676.84,0.29549081]
[1738231847576,1.10310886,677.91,676.85,0.25926843]
[1738231849181,1.10310886,677.91,676.84,0.29549081]
[1738231849381,1.10310886,677.91,676.85,0.25926419]
[1738231849576,1.10310886,677.88,676.85,0.25926419]
[1738231849775,1.10310886,677.88,676.84,0.29549081]
[1738231849974,1.10310886,677.88,676.85,0.25926442]
[1738231850377,1.10310886,677.88,676.84,0.29549081]
[1738231852182,0.29495044,678.08,676.84,0.29549081]
[1738231852183,1.10310886,677.9,676.84,0.29549081]
[1738231854778,1.10310886,678.0,676.84,0.29549081]
[1738231857687,1.10310886,677.96,676.84,0.29549081]
[1738231860684,1.10310886,677.92,676.84,0.29549081]
[1738231861386,0.27128756,677.91,676.84,0.29549081]
[1738231861982,1.10310886,677.92,676.84,0.29549081]
[1738231862286,0.27128798,677.91,676.84,0.29549081]
[1738231863681,1.10310886,677.92,676.84,0.29549081]
[1738231863879,0.27129768,677.91,676.84,0.29549081]
[1738231864078,1.10310886,677.76,676.84,0.29549081]
[1738231867788,1.10310886,677.75,676.84,0.29549081]
[1738231870389,1.10310886,677.75,676.85,0.2592835]
[1738231870989,1.10310886,677.7,676.84,0.29549081]
[1738231874694,1.10310886,677.81,676.84,0.29549081]
[1738231878000,1.10310886,677.84,676.84,0.29549081]
[1738231881000,1.10310886,677.87,676.84,0.29549081]
[1738231882300,1.10310886,677.87,676.85,0.25926257]
[1738231883701,0.29495044,678.08,676.85,0.25926257]
[1738231883702,1.10310886,677.83,676.85,0.25926257]
[1738231885405,1.10310886,677.83,676.86,0.25926089]
[1738231885602,1.10310886,677.83,676.87,0.25926089]
[1738231885798,1.10310886,677.83,676.88,0.25926089]
[1738231886000,1.10310886,677.83,676.89,0.25926089]
[1738231886198,1.10310886,677.83,676.85,0.25926089]
[1738231886401,1.10310886,677.83,676.86,0.25926089]
[1738231886600,1.10310886,677.83,676.87,0.25926089]
[1738231886803,1.10310886,677.83,676.85,0.25926089]
[1738231887005,1.10310886,677.79,676.86,0.25926089]
[1738231887207,1.10310886,677.79,676.85,0.25926089]
[1738231887401,1.10310886,677.79,676.86,0.25926089]
[1738231887606,1.10310886,677.79,676.85,0.25926089]
[1738231887907,1.10310886,677.79,676.86,0.25926089]
[1738231888110,1.10310886,677.79,676.87,0.25926089]
[1738231888308,1.10310886,677.79,676.88,0.25926089]
[1738231888509,1.10310886,677.79,676.84,0.29549081]
[1738231888808,1.10310886,677.79,676.85,0.25926589]
[1738231890208,1.10310886,677.79,676.86,0.25926659]
[1738231890408,1.10310886,677.79,676.87,0.25926659]
[1738231890708,1.10310886,677.79,676.84,0.29549081]
[1738231890905,1.10310886,677.79,676.85,0.25926756]
[1738231891810,1.10310886,677.79,676.84,0.29549081]
[1738231892111,1.10310886,677.79,676.85,0.25926688]
[1738231893509,1.10310886,677.79,676.84,0.29549081]
[1738231897110,1.10310886,677.87,676.84,0.29549081]
[1738231900117,1.10310886,677.86,676.84,0.29549081]
[1738231903222,1.10310886,677.85,676.84,0.29549081]
[1738231903717,1.10310886,677.85,676.85,0.2592582]
[1738231903919,1.10310886,677.85,676.84,0.29549081]
[1738231904521,1.10310886,677.85,676.85,0.25926049]
[1738231905022,1.10310886,677.85,676.84,0.29549081]
[1738231905223,1.10310886,677.85,676.85,0.25926053]
[1738231906023,1.10310886,677.78,676.85,0.25926053]
[1738231906720,1.10310886,677.78,676.86,0.25925947]
[1738231906924,1.10310886,677.78,676.87,0.25925947]
[1738231907123,1.10310886,677.78,676.85,0.25925947]
[1738231907322,1.10310886,677.78,676.86,0.25925947]
[1738231907522,1.10310886,677.78,676.87,0.25925947]
[1738231907723,1.10310886,677.78,676.88,0.25925947]
[1738231907923,1.10310886,677.78,676.89,0.25925947]
[1738231908224,1.10310886,677.78,676.84,0.29549081]
[1738231908425,1.10310886,677.78,676.85,0.2592612]
[1738231908725,1.10310886,677.74,676.85,0.2592612]
[1738231909924,1.10310886,677.74,676.84,2.93503327]
[1738231910927,1.10310886,677.74,676.86,1.09840676]
[1738231913732,1.10310886,677.83,676.84,1.83662651]
[1738231917234,1.10310886,677.84,676.84,1.83662651]
[1738231919838,1.10310886,677.84,676.84,0.29549081]
[1738231920140,1.10310886,677.79,676.84,0.29549081]
[1738231924242,1.10310886,677.93,676.84,0.29549081]
[1738231924539,0.29502006,677.92,676.84,0.29549081]
[1738231927534,0.27135625,677.91,676.84,0.29549081]
[1738231927738,0.27135625,677.91,673.93,4.18093956]
[1738231927940,0.27135625,677.91,676.27,1.10481853]
[1738231927941,0.29502876,677.9,676.27,1.10481853]
[1738231928241,0.27135625,677.89,676.28,0.5550943]
[1738231928439,0.29503746,677.88,676.29,0.55508993]
[1738231928639,0.27135625,677.87,676.3,0.55508555]
[1738231928842,0.29504617,677.86,676.31,0.55508118]
[1738231929034,0.29504617,677.86,676.32,0.295718]
[1738231929238,0.27135625,677.85,676.33,0.25935881]
[1738231929439,0.29505488,677.84,676.34,0.29570925]
[1738231929640,0.27135625,677.83,676.35,0.25935881]
[1738231929840,0.27135625,677.83,676.36,0.29570051]
[1738231930040,0.27135625,677.83,676.37,0.25935881]
[1738231930638,0.56641548,677.83,676.38,0.29569177]
[1738231930842,1.10133241,677.76,676.39,0.25935881]
[1738231931544,1.10133241,677.76,676.4,0.29568302]
[1738231931743,1.10133241,677.76,676.41,0.25935881]
[1738231931944,1.10133241,677.76,676.42,0.29567428]
[1738231932146,1.10133241,677.76,676.43,0.25935881]
[1738231932339,1.10133241,677.76,676.42,0.29567428]
[1738231932546,1.10133241,677.76,676.43,0.2593698]
[1738231932943,1.10133241,677.76,676.44,0.29566554]
[1738231933142,1.10133241,677.76,676.45,0.2593698]
[1738231933842,1.10133241,677.81,676.45,0.2593698]
[1738231934043,0.27135625,677.8,676.45,0.2593698]
[1738231935744,0.27135041,677.79,676.46,0.25934798]
[1738231935945,0.27135041,677.78,676.47,0.25934798]
[1738231936245,1.10133241,677.75,676.48,0.25934798]
[1738231936443,1.10133241,677.75,676.49,0.25934798]
[1738231936747,1.10133241,677.75,676.5,0.25934798]
[1738231936939,1.10133241,677.75,676.51,0.25934798]
[1738231937145,1.10133241,677.75,676.52,0.25934798]
[1738231937343,1.10133241,677.75,676.45,0.25934798]
[1738231937647,1.10133241,677.75,676.46,0.25934798]
[1738231939550,1.10133241,677.81,676.46,0.25934798]
[1738231939747,0.27135089,677.8,676.46,0.25934798]
[1738231940642,0.2713536,677.79,676.47,0.25935116]
[1738231940854,0.2713536,677.78,676.48,0.25935116]
[1738231941049,0.2713536,677.77,676.49,0.25935116]
[1738231941347,1.10133241,677.81,676.45,0.29566117]
[1738231941348,0.2713536,677.76,676.5,0.25935116]
[1738231941543,0.2713536,677.75,676.51,0.25935116]
[1738231941749,0.2713536,677.74,676.52,0.25935116]
[1738231942051,1.10133241,677.81,676.53,0.25935116]
[1738231942252,0.27135299,677.8,676.54,0.25935054]
[1738231942450,0.27135299,677.8,676.46,0.25935054]
[1738231942650,1.10133241,677.78,676.47,0.25935054]
[1738231942851,0.27135299,677.77,676.46,0.25935054]
[1738231943052,1.10133241,677.78,676.47,0.25935054]
[1738231943243,1.10133241,677.78,676.46,0.25935054]
[1738231943442,1.10133241,677.78,676.48,0.25935054]
[1738231943647,0.27136407,677.77,676.49,0.25935054]
[1738231943943,0.27136407,677.77,676.46,0.25935054]
[1738231944147,0.27136407,677.77,676.47,0.25935054]
[1738231944349,0.27136407,677.77,676.46,0.25935054]
[1738231944546,0.27136407,677.77,676.47,0.25935054]
[1738231944748,0.27136407,677.77,676.48,0.25935054]
[1738231944949,0.27136407,677.77,676.49,0.25935054]
[1738231945146,0.27136407,677.77,676.5,0.25935054]
[1738231945346,0.27136407,677.77,676.46,0.25935054]
[1738231945550,0.27136407,677.77,676.47,0.25935054]
[1738231945751,0.27136407,677.77,676.46,0.25935054]
[1738231946052,1.10133241,677.71,676.47,0.25935054]
[1738231946251,0.27136407,677.7,676.46,0.25935054]
[1738231946549,0.27136407,677.7,676.47,0.25935054]
[1738231946749,0.27136407,677.7,676.45,0.29566117]
[1738231946750,0.27136407,677.7,676.48,0.25935054]
[1738231946952,0.27136407,677.7,676.46,0.25935054]
[1738231947147,0.27136407,677.7,676.47,0.25935054]
[1738231947452,0.27138774,677.69,676.48,0.25938509]
[1738231947750,0.27138774,677.68,676.49,0.25938509]
[1738231947952,0.27138774,677.7,676.46,0.25938509]
[1738231948152,0.27138774,677.69,676.47,0.25938509]
[1738231948374,1.10133241,677.71,676.45,0.29566117]
[1738231948654,1.10133241,677.65,676.45,0.29566117]
[1738231951851,1.39639164,677.83,676.45,0.29566117]
[1738231952648,1.39639164,677.83,676.46,0.2593361]
[1738231952854,1.39639164,677.83,676.47,0.29565243]
[1738231953053,1.39639164,677.83,676.48,0.2593361]
[1738231953854,1.39639164,677.83,676.47,0.29565243]
[1738231954054,1.39639164,677.83,676.48,0.25933107]
[1738231954354,1.39639164,677.83,676.49,0.29564369]
[1738231955055,0.29505923,677.83,676.49,0.29564369]
[1738231955855,0.27132128,677.82,676.5,0.25931902]
[1738231956057,0.27132128,677.82,676.51,0.29563494]
[1738231956357,0.27132128,677.82,676.52,0.25931902]
[1738231956551,0.27132128,677.82,676.53,0.29562621]
[1738231956751,0.27132128,677.82,676.54,0.25931902]
[1738231956955,0.27132128,677.82,676.55,0.29561747]
[1738231957153,0.27132128,677.82,676.56,0.25931902]
[1738231957354,0.27132128,677.82,676.57,0.29560873]
[1738231957561,0.27132128,677.82,676.58,0.25931902]
[1738231957857,0.27132128,677.82,676.59,0.29559999]
[1738231958057,1.10133241,677.72,676.64,1.10481853]
[1738231958253,1.10133241,677.72,676.65,0.25931902]
[1738231958653,1.10133241,677.72,676.64,1.10481853]
[1738231958854,1.10133241,677.72,676.65,0.25930556]
[1738231961458,0.29505923,677.83,676.65,0.25930556]
[1738231961459,1.10133241,677.75,676.65,0.25930556]
[1738231961658,1.10133241,677.75,676.62,0.25930556]
[1738231964365,1.10133241,677.82,676.62,0.25930556]
[1738231965664,0.27130675,677.81,676.62,0.25930556]
[1738231966565,1.10133241,677.82,676.61,1.10481853]
[1738231966866,1.39639164,677.83,676.59,0.29559999]
[1738231967165,1.39639164,677.83,676.6,0.25930726]
[1738231967365,1.39639164,677.83,676.6,0.55490288]
[1738231967563,1.39639164,677.83,676.61,0.25930726]
[1738231968066,1.39639164,677.83,676.6,0.29559562]
[1738231969566,1.39639164,677.83,676.61,0.25930697]
[1738231971171,0.29505923,677.83,676.61,0.55489822]
[1738231971369,0.29505923,677.83,676.62,0.25930697]
[1738231971866,0.29505923,677.83,676.61,0.29559125]
[1738231972066,0.29505923,677.83,676.62,0.25929822]
[1738231973569,0.29505923,677.83,676.63,0.29558251]
[1738231973768,0.29505923,677.83,676.64,0.25929822]
[1738231975069,0.29505923,677.83,676.65,0.29557378]
[1738231976470,0.29505923,677.83,676.66,0.25928912]
[1738231976671,0.29505923,677.83,676.67,0.29556504]
[1738231976969,0.29505923,677.83,676.68,0.25928754]
[1738231977170,0.29505923,677.83,676.68,0.55484821]
[1738231977366,0.29505923,677.83,676.69,0.25928754]
[1738231978066,0.29505923,677.83,676.7,0.29555194]
[1738231978369,0.29505923,677.83,676.71,0.25928754]
[1738231978570,0.29505923,677.83,676.71,0.55483511]
[1738231978770,0.29505923,677.83,676.72,0.25926466]
[1738231980372,0.29505923,677.83,676.71,0.29554757]
[1738231980671,0.29505923,677.83,676.72,0.25926736]
[1738231981268,0.29505923,677.83,676.71,0.29554757]
[1738231988677,0.29505923,677.83,676.72,0.25928805]
[1738231989572,0.29505923,677.83,676.71,0.29554757]
[1738231989770,0.29505923,677.83,676.72,0.25927736]
[1738231992779,0.29505923,677.83,676.71,0.29554757]
[1738231992982,0.29505923,677.83,676.72,0.25927497]
[1738231993182,1.10133241,677.8,676.72,1.3640935]
[1738231993378,1.10133241,677.8,676.73,0.25927497]
[1738231996880,1.10133241,677.8,676.72,1.10481853]
[1738231997082,1.10133241,677.81,676.71,0.29554757]
[1738231999883,1.10133241,677.79,676.71,0.29554757]
[1738232000082,1.10133241,677.79,676.72,0.25930688]
[1738232002691,1.10133241,677.76,676.73,0.25930771]
[1738232002891,1.10133241,677.76,676.72,0.25930771]
[1738232003092,1.10133241,677.76,676.73,0.25930771]
[1738232003285,1.10133241,677.76,676.72,0.25930771]
[1738232003490,1.10133241,677.76,676.73,0.25930771]
[1738232003690,1.10133241,677.76,676.74,0.25930771]